bitfinex/quotes_ETHUSD_20250518
["timestamp","ask_amount","ask_price","bid_price","bid_amount"]
[1747579927968,8.7988,2563.0,2562.3,3.90265859]
[1747579927969,3.90203652,2562.8,2562.3,3.90265859]
[1747579928271,3.90214465,2562.7,2562.2,3.90282374]
[1747579928428,3.90193861,2562.9,2562.4,3.90253418]
[1747579928633,3.90198423,2562.8,2562.4,9.073]
[1747579928860,3.90189833,2562.9,2562.4,12.97557479]
[1747579929165,3.90131038,2563.3,2562.4,9.073]
[1747579929337,3.90122108,2563.3,2562.7,3.90205177]
[1747579929664,3.90175672,2563.0,2562.3,3.90259303]
[1747579929879,3.90127329,2563.3,2562.2,0.8072]
[1747579930076,1.3488,2563.4,2562.2,0.8072]
[1747579930077,0.7988,2563.4,2562.2,4.71007032]
[1747579930245,3.90139382,2563.2,2562.6,3.90214983]
[1747579930428,3.90139382,2563.2,2562.7,12.97413048]
[1747579930628,0.7988,2563.4,2562.8,9.072]
[1747579930868,3.90164533,2563.1,2562.8,9.072]
[1747579931076,3.90148264,2563.2,2562.8,9.072]
[1747579931244,4.76152788,2563.2,2562.7,9.071]
[1747579931649,0.55,2563.1,2562.1,0.8072]
[1747579931850,0.7988,2562.8,2562.2,9.071]
[1747579932173,0.55,2562.7,2561.9,3.90327282]
[1747579932376,3.90290484,2562.2,2562.0,9.071]
[1747579932564,4.29319532,2562.2,2561.7,9.073]
[1747579932759,3.90290484,2562.2,2561.7,12.97663109]
[1747579932963,0.55,2562.7,2561.7,9.073]
[1747579933176,10.05,2563.0,2561.7,9.073]
[1747579933177,4.70077595,2562.9,2562.3,3.90263388]
[1747579933377,3.90214693,2562.7,2562.3,9.071]
[1747579933553,1.68194598,2563.2,2562.8,3.90185636]
[1747579933877,3.90153678,2563.1,2562.6,3.902214]
[1747579934065,5.58338527,2563.2,2562.7,3.90211591]
[1747579934262,0.8218,2563.2,2562.7,3.9020581]
[1747579934462,0.8218,2563.2,2562.5,0.798]
[1747579934463,3.90153823,2563.1,2562.5,0.798]
[1747579934667,0.03984894,2563.0,2562.5,4.70034596]
[1747579934872,3.90152549,2563.1,2562.5,4.70034596]
[1747579935067,3.90152549,2563.1,2562.6,3.90226607]
[1747579935257,4.72321301,2563.2,2562.6,3.90217577]
[1747579935580,0.03984894,2563.1,2562.7,9.07]
[1747579935784,0.8218,2563.2,2562.7,12.97200837]
[1747579936081,4.45106889,2563.4,2562.9,3.90181793]
[1747579936245,3.90120968,2563.4,2562.8,0.798]
[1747579936446,4.72272018,2563.5,2563.0,3.90160664]
[1747579936672,4.72279618,2563.5,2562.9,3.90176639]
[1747579936981,4.72279618,2563.5,2563.0,3.90163216]
[1747579937350,4.72279618,2563.5,2562.9,3.90175826]
[1747579937553,3.90108014,2563.4,2562.9,3.90175826]
[1747579937768,4.72283079,2563.5,2562.8,4.69992706]
[1747579938076,0.8218,2563.5,2562.8,2.17499271]
[1747579938248,3.90106889,2563.4,2562.8,2.17499271]
[1747579938443,3.90132914,2563.3,2562.9,9.069]
[1747579938646,3.90168272,2563.0,2562.5,0.8093]
[1747579938855,3.94176925,2562.9,2562.6,9.069]
[1747579939149,3.90192031,2562.9,2562.6,9.069]
[1747579939358,0.55,2563.4,2562.6,9.069]
[1747579939566,3.90192223,2562.9,2562.6,9.069]
[1747579939779,1.04438,2563.3,2562.6,9.069]
[1747579939964,1.04438,2563.3,2562.7,3.90213446]
[1747579939965,3.90124758,2563.3,2562.7,3.90213446]
[1747579940177,3.90135898,2563.3,2562.8,3.90188197]
[1747579940348,3.90110886,2563.4,2562.8,3.90186323]
[1747579940678,3.9010842,2563.4,2562.9,3.90175539]
[1747579941176,4.72276854,2563.5,2563.0,3.90161415]
[1747579941382,3.90109692,2563.4,2563.1,9.067]
[1747579941678,3.90106889,2563.4,2563.1,9.067]
[1747579941878,3.90106889,2563.4,2563.0,9.067]
[1747579942576,3.90147093,2563.2,2562.8,9.067]
[1747579942788,3.90155336,2563.1,2562.8,9.067]
[1747579942966,4.37356622,2563.3,2562.8,9.067]
[1747579943171,3.90127933,2563.3,2562.8,12.96896415]
[1747579943350,0.8218,2563.5,2562.8,9.8681]
[1747579943545,3.90114085,2563.4,2562.9,3.90182922]
[1747579943776,0.8218,2563.5,2562.8,0.8011]
[1747579944087,3.90152549,2563.1,2562.9,9.066]
[1747579944580,0.55,2563.4,2562.9,9.066]
[1747579944783,3.90162172,2563.1,2562.6,3.90225776]
[1747579945078,4.3733593,2563.4,2562.8,9.065]
[1747579945287,3.90151657,2563.2,2562.8,9.065]
[1747579945581,3.90162289,2563.1,2562.8,9.065]
[1747579945785,3.90167772,2563.0,2562.5,9.071]
[1747579945974,0.03984894,2563.0,2562.7,9.065]
[1747579946189,3.90190536,2562.9,2562.7,9.065]
[1747579946689,3.90190536,2562.9,2562.3,3.90266619]
[1747579946690,1.3247,2562.9,2562.1,9.071]
[1747579946890,1.3247,2562.9,2562.2,9.064]
[1747579947093,0.7747,2562.9,2562.2,11.34791283]
[1747579947264,8.55,2563.3,2562.2,11.34791283]
[1747579947595,3.90180754,2563.0,2562.3,3.90274362]
[1747579947905,3.90191325,2562.9,2562.4,18.135]
[1747579948091,3.90210405,2562.8,2562.5,9.064]
[1747579948292,3.90210405,2562.8,2562.1,3.90301353]
[1747579948293,3.90266234,2562.4,2562.0,0.8011]
[1747579948495,0.03984894,2562.3,2561.9,9.071]
[1747579948798,3.90264324,2562.4,2561.9,22.03733372]
[1747579948963,0.7635,2562.7,2561.9,18.134]
[1747579948964,4.66575234,2562.7,2561.9,18.134]
[1747579949164,3.90252639,2562.5,2561.8,3.9034495]
[1747579949363,0.7635,2563.0,2561.9,9.071]
[1747579949364,3.90266499,2562.4,2561.9,9.071]
[1747579949694,3.90266499,2562.4,2562.0,9.063]
[1747579950500,3.90248038,2562.5,2562.0,9.063]
[1747579950708,3.90206178,2562.8,2562.0,9.063]
[1747579950857,3.90189987,2562.9,2562.4,3.90255494]
[1747579951197,3.90189987,2562.9,2562.3,4.72848357]
[1747579951399,0.7635,2563.0,2562.3,1.68893795]
[1747579951598,0.7635,2563.0,2562.3,0.8258]
[1747579952089,1.22517372,2563.4,2562.4,9.072]
[1747579952272,3.90104114,2563.5,2562.9,3.90170509]
[1747579952462,3.90104114,2563.5,2563.0,9.062]
[1747579952662,3.90108554,2563.4,2563.0,9.062]
[1747579952937,4.65358802,2563.7,2563.1,3.90152549]
[1747579953194,0.7529,2563.7,2563.1,3.90150458]
[1747579953397,3.90084338,2563.6,2563.1,3.90140188]
[1747579953694,3.90040086,2563.9,2563.3,3.90112641]
[1747579953862,3.90047668,2563.8,2563.3,3.90112641]
[1747579954057,3.90069221,2563.7,2563.2,0.7598]
[1747579954279,3.90046025,2563.8,2563.2,4.66108586]
[1747579954508,3.90046025,2563.8,2563.3,3.9011373]
[1747579954717,0.7637,2564.3,2563.4,3.90106889]
[1747579954873,0.7637,2564.3,2563.5,9.09900448]
[1747579955079,21.15290038,2565.3,2563.5,9.09900448]
[1747579955080,5.06860038,2565.3,2563.7,4.66041239]
[1747579955274,5.06860038,2565.3,2564.2,4.6596518]
[1747579955275,0.32685365,2565.2,2564.2,4.6596518]
[1747579955501,0.32685365,2565.2,2564.3,18.131]
[1747579955706,0.32685365,2565.2,2564.4,1.88908]
[1747579955900,0.32685365,2565.2,2564.5,17.6078]
[1747579956103,0.32685365,2565.2,2564.8,3.8989322]
[1747579956292,0.32685365,2565.2,2565.1,3.89848348]
[1747579956705,0.32685365,2565.2,2565.1,22.01848348]
[1747579956904,0.32685365,2565.2,2565.1,32.68617503]
[1747579957125,8.55722679,2567.0,2566.9,0.7598]
[1747579957415,2.41802009,2567.0,2566.9,10.62373712]
[1747579957617,2.41802009,2567.0,2566.6,16.848]
[1747579957800,2.41802009,2567.0,2566.5,3.89630108]
[1747579958003,2.41802009,2567.0,2566.4,9.146]
[1747579958208,2.41802009,2567.0,2566.3,0.7598]
[1747579958416,3.8960329,2566.8,2566.5,9.164]
[1747579958616,3.89605358,2566.7,2566.5,9.164]
[1747579958831,2.41802009,2567.0,2566.5,9.164]
[1747579959034,2.41802009,2567.0,2566.3,0.7598]
[1747579959035,0.30846868,2566.9,2566.3,0.7598]
[1747579959326,4.20425529,2566.9,2566.4,18.214]
[1747579959636,4.20425529,2566.9,2566.2,0.60761168]
[1747579959637,3.89666056,2566.3,2566.2,0.60761168]
[1747579959990,4.20424198,2566.9,2566.2,0.60761168]
[1747579960242,3.18172009,2567.0,2566.3,3.89666056]
[1747579960243,2.41802009,2567.0,2566.3,3.89666056]
[1747579960383,2.41802009,2567.0,2566.4,18.284]
[1747579960718,2.41802009,2567.0,2566.2,0.60761168]
[1747579960919,0.03984894,2566.9,2566.2,0.60761168]
[1747579961123,0.55,2567.0,2566.3,9.219]
[1747579961299,3.89647792,2566.5,2566.3,9.219]
[1747579962115,3.89616422,2566.7,2566.3,9.219]
[1747579962317,3.8961732,2566.7,2566.3,9.219]
[1747579962720,3.89621286,2566.6,2566.4,0.32527377]
[1747579962921,3.89610945,2566.7,2566.4,0.32527377]
[1747579963109,0.66666667,2567.1,2566.5,3.93517179]
[1747579963422,0.66666667,2567.1,2566.4,1.27970115]
[1747579963423,0.66666667,2567.1,2566.7,0.7598]
[1747579963587,0.66666667,2567.1,2566.8,4.22112459]
[1747579964015,0.66666667,2567.1,2566.8,0.32522308]
[1747579964397,3.89574973,2566.9,2566.8,0.32522308]
[1747579964595,4.74155112,2566.9,2566.8,0.32522308]
[1747579965455,0.84580139,2566.9,2566.8,0.32522308]
[1747579965593,0.66666667,2567.1,2566.8,0.32522308]
[1747579965924,0.66666667,2567.1,2566.9,9.189]
[1747579966223,0.66666667,2567.1,2567.0,0.32519774]
[1747579966390,0.66666667,2567.1,2567.0,18.62519774]
[1747579966889,0.66666667,2567.1,2567.0,22.52079571]
[1747579967091,0.66666667,2567.1,2567.0,24.03056931]
[1747579967995,0.66666667,2567.1,2567.0,1.83497134]
[1747579968302,0.66666667,2567.1,2567.0,22.49279571]
[1747579968519,0.66666667,2567.1,2567.0,0.32519774]
[1747579968714,0.66666667,2567.1,2567.0,22.48779571]
[1747579969119,0.005,2568.0,2567.9,3.89423264]
[1747579969328,0.005,2568.0,2567.9,39.86563264]
[1747579969528,0.005,2568.0,2567.9,43.26448624]
[1747579969839,0.005,2568.0,2567.9,50.84435224]
[1747579970038,0.005,2568.0,2567.9,51.169436]
[1747579970244,0.005,2568.0,2567.9,43.98457]
[1747579970428,0.005,2568.0,2567.9,36.70348376]
[1747579970761,0.005,2568.0,2567.9,26.56708376]
[1747579970963,3.89908099,2568.0,2567.9,0.32508376]
[1747579971655,0.005,2568.0,2567.9,0.32508376]
[1747579971941,3.89908099,2568.0,2567.9,0.32508376]
[1747579972347,4.67839569,2568.0,2567.9,0.32508376]
[1747579972649,3.89908099,2568.0,2567.9,0.32508376]
[1747579974049,3.89910537,2568.0,2567.7,9.382]
[1747579974248,3.89438429,2567.8,2567.7,9.382]
[1747579974461,3.89453596,2567.7,2567.6,0.11902248]
[1747579975255,4.7509849,2567.7,2567.6,0.11902248]
[1747579975549,5.97430399,2567.7,2567.6,0.11902248]
[1747579975716,3.89453596,2567.7,2567.6,0.11902248]
[1747579976044,0.005,2568.0,2567.6,0.11902248]
[1747579976344,3.89453596,2567.7,2567.6,0.11902248]
[1747579977431,3.89453596,2567.7,2567.6,9.47602248]
[1747579977966,3.89453596,2567.7,2567.6,0.11902248]
[1747579978166,4.67342854,2567.7,2567.6,0.11902248]
[1747579978927,5.46772854,2567.7,2567.6,0.11902248]
[1747579979314,14.01772854,2567.7,2567.6,0.11902248]
[1747579979728,13.58892854,2567.7,2567.6,0.11902248]
[1747579979952,13.58892854,2567.7,2566.7,9.331]
[1747579980150,13.58892854,2567.7,2566.1,4.67358722]
[1747579980151,3.8963569,2566.5,2566.4,26.199]
[1747579980325,3.8963569,2566.5,2566.4,35.524]
[1747579980515,3.89626676,2566.6,2566.4,35.84927377]
[1747579980769,3.89666056,2566.3,2566.2,0.44572133]
[1747579980922,3.9365095,2566.3,2566.2,0.44572133]
[1747579981255,5.51411132,2566.3,2566.2,0.44572133]
[1747579981442,5.47426238,2566.3,2566.2,0.44572133]
[1747579981818,4.44696426,2566.1,2566.0,0.49368449]
[1747579982039,3.89802759,2565.4,2565.3,1.20737704]
[1747579982240,3.93787653,2565.4,2565.3,1.20737704]
[1747579982415,3.89802759,2565.4,2565.3,1.20737704]
[1747579982621,4.75704881,2565.4,2565.3,1.20737704]
[1747579983047,3.89802759,2565.4,2565.3,1.20737704]
[1747579983448,0.7571,2565.9,2565.3,1.20737704]
[1747579983645,3.89799562,2565.5,2565.3,9.308]
[1747579983847,0.7571,2565.9,2565.3,9.308]
[1747579984054,0.7571,2566.4,2565.3,9.308]
[1747579984266,3.8963749,2566.5,2565.8,3.89737121]
[1747579984466,0.7571,2566.9,2565.9,18.701]
[1747579984467,4.6529088,2566.9,2565.9,18.701]
[1747579984667,3.89711613,2566.0,2565.5,0.8022]
[1747579984868,3.8967395,2566.3,2565.6,9.328]
[1747579985069,0.7571,2566.2,2565.7,0.36095094]
[1747579985255,3.89720479,2566.0,2565.7,0.36095094]
[1747579985471,0.7571,2566.2,2565.8,9.355]
[1747579985651,3.89681685,2566.2,2565.8,9.355]
[1747579985849,3.8957317,2567.0,2566.0,3.89711613]
[1747579986162,3.89584983,2566.9,2566.3,3.89665576]
[1747579986357,3.89584983,2566.9,2566.4,9.356]
[1747579986874,4.65266403,2567.1,2566.4,0.36095094]
[1747579986875,0.7571,2567.1,2566.4,0.36095094]
[1747579987183,3.8963569,2566.5,2566.4,0.36095094]
[1747579988175,0.7571,2567.1,2566.4,0.36095094]
[1747579988377,3.89613508,2566.7,2566.4,0.36095094]
[1747579988550,3.89613508,2566.7,2566.4,9.72995094]
[1747579988745,3.89621892,2566.6,2566.5,0.36095094]
[1747579989352,3.89620509,2566.6,2566.5,0.36095094]
[1747579989552,3.89592094,2566.8,2566.5,0.36095094]
[1747579989868,1.27732895,2567.1,2566.5,0.36095094]
[1747579990069,3.89636847,2566.5,2565.9,3.89720804]
[1747579990250,3.89676556,2566.3,2566.0,9.362]
[1747579990450,3.89606211,2566.7,2566.0,9.362]
[1747579990682,0.55,2566.9,2565.6,18.03337704]
[1747579990881,3.89693459,2566.2,2565.7,9.355]
[1747579991058,3.89714241,2566.0,2565.7,9.355]
[1747579991464,3.8974199,2565.8,2565.7,9.354]
[1747579991650,3.89757181,2565.7,2565.6,1.20737704]
[1747579992050,3.89772372,2565.6,2565.5,9.35]
[1747579992251,3.89763536,2565.7,2565.1,4.70067515]
[1747579992498,3.89775572,2565.6,2565.2,9.345]
[1747579992870,3.8977371,2565.6,2565.2,9.345]
[1747579993079,0.7571,2566.0,2565.2,9.345]
[1747579993080,3.89790849,2565.5,2565.2,9.345]
[1747579993372,0.7571,2566.0,2565.0,3.89863547]
[1747579993571,3.89765109,2565.7,2565.1,5.22258898]
[1747579993772,0.7571,2566.0,2565.1,0.36067466]
[1747579993972,3.897298,2565.9,2565.2,9.345]
[1747579994174,0.7571,2566.0,2565.2,9.345]
[1747579994175,3.89789626,2565.5,2565.2,9.345]
[1747579994393,3.89798054,2565.5,2565.3,9.346]
[1747579994586,3.8979067,2565.5,2565.3,9.346]
[1747579994787,3.89805657,2565.4,2565.3,9.335]
[1747579995289,3.89866545,2565.0,2564.7,9.382]
[1747579995504,3.89854313,2565.1,2564.7,9.329]
[1747579995700,3.89866084,2565.0,2564.7,9.329]
[1747579995989,3.89851936,2565.1,2564.7,9.329]
[1747579996193,3.89851936,2565.1,2564.8,0.36062352]
[1747579996495,3.89878747,2564.9,2564.8,0.36062352]
[1747579997563,3.89931893,2564.6,2564.4,9.34]
[1747579997759,3.89903322,2564.8,2564.4,9.34]
[1747579998010,0.7571,2565.2,2564.4,9.34]
[1747579998196,3.89903314,2564.8,2564.4,9.34]
[1747579998399,3.89914546,2564.7,2564.4,9.34]
[1747579998579,3.89787565,2565.5,2564.5,13.58566592]
[1747579998892,3.89865059,2565.0,2564.5,13.58572375]
[1747579999098,3.8986471,2565.0,2564.5,13.58562683]
[1747579999295,3.89880705,2564.9,2564.5,9.68634802]
[1747579999697,3.89882188,2564.9,2564.5,9.68634802]
[1747579999998,3.89944761,2564.5,2564.2,9.316]
[1747580000179,3.89880966,2564.9,2564.2,13.21583484]
[1747580000380,3.89921333,2564.7,2564.2,13.21584435]
[1747580000580,3.89918524,2564.7,2564.2,9.316]
[1747580000780,3.89924354,2564.6,2563.9,17.5829]
[1747580001077,0.7692,2564.7,2564.0,9.302]
[1747580001299,0.7692,2564.7,2564.1,0.36078632]
[1747580001480,3.89935603,2564.6,2564.1,9.66478632]
[1747580001799,3.89900207,2564.8,2564.3,3.89968327]
[1747580002005,0.7692,2565.5,2564.1,9.66478632]
[1747580002202,3.8984317,2565.2,2564.7,3.89903389]
[1747580002368,3.89860993,2565.1,2564.8,9.295]
[1747580002701,3.89853837,2565.1,2564.8,9.295]
[1747580003203,3.89871723,2565.0,2564.6,10.0409]
[1747580003505,3.89852597,2565.1,2564.6,13.94013824]
[1747580003667,3.89837654,2565.2,2564.6,15.72410425]
[1747580003867,3.89822282,2565.3,2564.7,3.89898301]
[1747580004067,3.89834711,2565.2,2564.6,15.7239865]
[1747580004304,3.89834711,2565.2,2564.7,4.25984223]
[1747580004486,0.7692,2565.5,2564.7,0.36075562]
[1747580004691,3.89891117,2564.9,2564.7,0.36075562]
[1747580004893,1.47169424,2565.4,2564.7,0.36075562]
[1747580005502,3.89840518,2565.2,2564.7,4.25984342]
[1747580005805,3.89848696,2565.1,2564.7,0.36075562]
[1747580006210,3.89848696,2565.1,2564.8,0.36075562]
[1747580006902,3.89848348,2565.1,2564.8,0.36075562]
[1747580007107,3.89863839,2565.0,2564.9,0.36075562]
[1747580007607,4.67835266,2565.0,2564.9,0.36075562]
[1747580007904,3.89803668,2565.4,2564.9,0.36075562]
[1747580007905,3.89814428,2565.4,2564.9,0.36075562]
[1747580008205,3.89781786,2565.6,2565.0,3.89855986]
[1747580008384,3.89781786,2565.6,2565.1,3.89840653]
[1747580008583,0.7692,2565.9,2565.0,0.36075562]
[1747580008785,3.89827545,2565.3,2565.0,0.36075562]
[1747580009285,3.89795923,2565.5,2565.0,0.36075562]
[1747580009606,3.89795923,2565.5,2565.1,0.36075562]
[1747580010908,3.89795923,2565.5,2565.2,0.36075562]
[1747580011210,10.05,2565.8,2565.2,0.36075562]
[1747580011575,10.05,2565.8,2565.3,9.218]
[1747580012136,13.94742688,2565.8,2565.4,0.36075562]
[1747580012277,10.05,2565.8,2565.5,0.7579]
[1747580012479,10.05,2565.8,2565.5,4.65573287]
[1747580012810,21.25317211,2566.4,2565.8,3.89731213]
[1747580012976,16.834,2566.8,2565.8,3.89731213]
[1747580012977,3.89631781,2566.6,2565.9,13.10019064]
[1747580013181,3.89673473,2566.3,2565.9,9.203]
[1747580013596,3.89673473,2566.3,2566.0,0.36075562]
[1747580013775,3.89655367,2566.4,2566.0,0.36075562]
[1747580013980,3.89607293,2566.7,2566.0,0.36075562]
[1747580014181,3.89675222,2566.3,2566.1,9.194]
[1747580015091,3.89682027,2566.2,2566.1,9.177]
[1747580015289,3.89673233,2566.3,2566.1,9.177]
[1747580015523,3.89710466,2566.1,2565.5,4.65573982]
[1747580015814,3.89706508,2566.1,2565.7,9.311]
[1747580016108,3.89686622,2566.2,2565.7,9.311]
[1747580016305,3.89675718,2566.3,2565.7,12.04973163]
[1747580016476,3.89675718,2566.3,2565.8,3.89740252]
[1747580016898,1.47152729,2566.6,2565.7,12.04973163]
[1747580017090,1.47152729,2566.6,2565.8,18.452]
[1747580017405,3.89683945,2566.2,2565.8,18.452]
[1747580017610,3.89691728,2566.2,2565.8,18.452]
[1747580017777,3.89706596,2566.1,2565.9,0.36196792]
[1747580017978,3.89711613,2566.0,2565.9,0.36196792]
[1747580018378,3.89694854,2566.2,2565.9,0.36196792]
[1747580018598,3.8967326,2566.3,2565.9,0.36196792]
[1747580018811,18.05,2566.8,2566.0,9.123]
[1747580019112,3.8968124,2566.2,2565.9,0.36196792]
[1747580019315,3.89711613,2566.0,2565.9,0.36196792]
[1747580019615,0.38968124,2566.2,2565.5,9.31]
[1747580019616,3.89726801,2565.9,2565.5,9.31]
[1747580019912,3.89726801,2565.9,2565.3,1.3613732]
[1747580019913,3.89798654,2565.5,2565.3,10.6713732]
[1747580020094,3.89798654,2565.5,2565.4,9.127]
[1747580020298,3.89778457,2565.6,2565.4,9.127]
[1747580020501,3.89788741,2565.5,2565.4,9.118]
[1747580020689,3.89802759,2565.4,2565.3,0.6034732]
[1747580021010,3.89802759,2565.4,2565.3,0.96642963]
[1747580022636,3.89788741,2565.5,2565.0,9.122]
[1747580022637,3.89848348,2565.1,2565.0,9.122]
[1747580023349,3.89924354,2564.6,2564.5,0.6034732]
[1747580023560,3.89912648,2564.7,2564.5,0.6034732]
[1747580023849,3.8989258,2564.9,2564.5,0.6034732]
[1747580024002,3.8989258,2564.9,2564.6,0.36327597]
[1747580024206,3.89872532,2565.0,2564.6,0.36327597]
[1747580024703,4.44909151,2564.7,2564.6,0.36327597]
[1747580025013,4.8192795,2564.7,2564.6,0.36327597]
[1747580025221,3.89909151,2564.7,2564.6,0.36327597]
[1747580025772,10.864,2565.3,2564.2,3.8998518]
[1747580026073,3.89895069,2564.8,2564.5,9.095]
[1747580026572,3.89895069,2564.8,2564.2,9.31]
[1747580026573,3.89901493,2564.8,2564.6,9.085]
[1747580026776,3.89848348,2565.1,2564.5,9.08]
[1747580027071,0.814,2564.9,2564.3,9.078]
[1747580027370,3.8998518,2564.2,2564.1,9.077]
[1747580028174,3.8998518,2564.2,2564.1,9.44033231]
[1747580028759,3.8998518,2564.2,2564.1,0.36333231]
[1747580030078,3.90023251,2564.0,2563.5,0.8068589]
[1747580030278,3.9003083,2563.9,2563.5,0.8068589]
[1747580030446,3.9000039,2564.1,2563.6,9.09]
[1747580030780,3.90061239,2563.7,2563.6,9.09]
[1747580031975,0.55,2563.3,2562.7,0.09879001]
[1747580032151,3.90182995,2562.9,2562.2,0.7784]
[1747580032350,3.90182995,2562.9,2562.4,9.249]
[1747580033274,3.90182995,2562.9,2562.1,1.20737704]
[1747580033275,5.24379594,2562.2,2562.1,1.20737704]
[1747580033487,13.24379594,2562.2,2562.1,1.20737704]
[1747580034352,12.69379594,2562.2,2562.1,1.20737704]
[1747580034553,11.35965518,2562.2,2561.3,0.7784]
[1747580034752,8.7909,2562.2,2561.3,0.7784]
[1747580035073,8.7909,2562.2,2561.0,8.7266]
[1747580035074,0.55,2561.9,2561.0,8.7266]
[1747580035261,3.90416278,2561.4,2561.0,8.7266]
[1747580035592,3.90350534,2561.8,2561.0,8.7266]
[1747580035888,0.7909,2561.6,2561.0,8.7266]
[1747580036062,3.90455336,2561.2,2561.0,8.7266]
[1747580036964,3.90457225,2561.1,2561.0,8.7266]
[1747580040958,3.90445564,2561.2,2561.0,8.7266]
[1747580041293,1.26034832,2561.6,2561.0,8.7266]
[1747580041593,3.90413975,2561.4,2561.0,8.7266]
[1747580041791,25.948,2561.9,2561.0,8.7266]
[1747580041994,3.9041241,2561.4,2561.0,8.7266]
[1747580042162,3.90419326,2561.4,2561.0,8.7266]
[1747580042493,2.67037,2561.8,2561.0,17.9136]
[1747580042658,3.90404549,2561.5,2561.0,17.9136]
[1747580043060,3.90365772,2561.7,2561.0,21.81831058]
[1747580043357,3.90396252,2561.5,2561.0,17.9136]
[1747580043975,3.90412796,2561.4,2561.0,17.9136]
[1747580044172,3.90387289,2561.6,2561.1,0.776]
[1747580044388,3.90381011,2561.6,2561.1,4.68054331]
[1747580044598,3.90381011,2561.6,2561.0,17.9136]
[1747580044599,0.79713721,2561.7,2561.0,8.7266]
[1747580044776,3.90451363,2561.2,2561.0,8.7266]
[1747580044975,3.90381011,2561.6,2561.0,8.7266]
[1747580045280,9.89713721,2561.7,2561.0,8.7266]
[1747580045281,3.90454862,2561.2,2561.0,8.7266]
[1747580045481,16.849,2561.9,2561.1,9.925]
[1747580045689,3.90383162,2561.6,2561.1,13.82953096]
[1747580045884,3.90383162,2561.6,2561.1,9.925]
[1747580046197,0.7557,2562.0,2561.1,9.925]
[1747580046395,3.9044198,2561.2,2561.0,17.8706]
[1747580046596,3.90457225,2561.1,2561.0,8.7266]
[1747580046963,4.45457225,2561.1,2561.0,8.7266]
[1747580049676,12.45457225,2561.1,2561.0,8.7266]
[1747580050467,21.55657225,2561.1,2561.0,8.7266]
[1747580051191,25.41061454,2561.1,2561.0,8.7266]
[1747580051383,26.19441454,2561.1,2561.0,8.7266]
[1747580051917,17.09241454,2561.1,2561.0,8.7266]
[1747580052272,35.28541454,2561.1,2561.0,8.7266]
[1747580052472,17.09241454,2561.1,2561.0,8.7266]
[1747580052694,35.28541454,2561.1,2561.0,8.7266]
[1747580053097,17.09241454,2561.1,2561.0,8.7266]
[1747580053315,35.30041454,2561.1,2561.0,8.7266]
[1747580053517,35.29841454,2561.1,2561.0,8.7266]
[1747580054710,35.29741454,2561.1,2561.0,8.7266]
[1747580055024,35.29441454,2561.1,2561.0,8.7266]
[1747580055518,35.28741454,2561.1,2561.0,8.7266]
[1747580056517,26.19541454,2561.1,2561.0,8.7266]
[1747580057022,17.09241454,2561.1,2561.0,8.7266]
[1747580057180,35.28941454,2561.1,2561.0,8.7266]
[1747580057981,17.09241454,2561.1,2561.0,8.7266]
[1747580058216,35.28941454,2561.1,2561.0,8.7266]
[1747580058423,17.09241454,2561.1,2561.0,8.7266]
[1747580058625,35.28941454,2561.1,2561.0,8.7266]
[1747580059225,49.44641454,2561.1,2561.0,8.7266]
[1747580060024,31.24841454,2561.1,2561.0,8.7266]
[1747580060316,45.34141454,2561.1,2561.0,8.7266]
[1747580060521,36.23641454,2561.1,2561.0,8.7266]
[1747580060712,45.33041454,2561.1,2561.0,8.7266]
[1747580061117,11.71463157,2560.9,2559.7,0.44834409]
[1747580061321,1.3234,2561.0,2559.7,0.44834409]
[1747580061322,0.55,2560.3,2559.7,0.44834409]
[1747580061523,3.90563974,2560.4,2559.7,0.44834409]
[1747580061524,3.90655519,2559.8,2559.7,0.44834409]
[1747580062094,3.94640413,2559.8,2559.7,0.44834409]
[1747580062420,21.55155519,2559.8,2559.7,0.44834409]
[1747580062626,21.55155519,2559.8,2559.7,0.3655135]
[1747580062826,15.00235195,2559.8,2559.7,0.3655135]
[1747580062995,24.39104533,2559.8,2559.7,0.3655135]
[1747580063958,25.20394533,2559.8,2559.7,0.3655135]
[1747580064311,26.52734533,2559.8,2559.7,0.3655135]
[1747580064935,35.62234533,2559.8,2559.7,0.3655135]
[1747580065133,17.43234533,2559.8,2559.7,0.3655135]
[1747580065312,35.62334533,2559.8,2559.7,0.3655135]
[1747580065518,35.62334533,2559.8,2558.5,4.70903618]
[1747580065519,3.90762377,2559.1,2559.0,0.45726493]
[1747580066459,3.90762377,2559.1,2559.0,0.82289967]
[1747580067252,6.14873447,2559.1,2559.0,0.82289967]
[1747580067424,10.12615812,2559.1,2559.0,0.82289967]
[1747580067763,14.69473447,2559.1,2559.0,0.82289967]
[1747580067950,14.69473447,2559.1,2559.0,0.45726493]
[1747580068112,14.69473447,2559.1,2558.8,0.60968657]
[1747580068113,1.6911107,2559.1,2558.6,0.45726493]
[1747580068323,3.90795149,2558.9,2558.6,0.45726493]
[1747580068551,3.90798802,2558.9,2558.6,0.45726493]
[1747580069265,3.90818848,2558.8,2558.6,0.45726493]
[1747580069431,3.90808191,2558.8,2558.7,0.36518046]
[1747580070788,3.9080478,2558.9,2558.7,0.36518046]
[1747580071068,3.90808191,2558.8,2558.7,0.36518046]
[1747580072466,4.32721488,2558.8,2558.7,0.36518046]
[1747580073040,3.90808191,2558.8,2558.7,0.36518046]
[1747580073247,13.00708191,2558.8,2558.7,0.36518046]
[1747580073473,13.55708191,2558.8,2558.7,0.36518046]
[1747580073971,13.55708191,2558.8,2558.2,0.45726493]
[1747580073972,3.90884571,2558.3,2558.2,0.45726493]
[1747580074160,3.90800734,2558.9,2558.2,0.45726493]
[1747580074161,3.90864669,2558.5,2558.2,0.45726493]
[1747580074362,3.90808191,2558.8,2558.2,0.45726493]
[1747580074546,3.90884571,2558.3,2558.2,0.45726493]
[1747580074738,4.71445119,2558.6,2558.2,0.45726493]
[1747580074938,3.90884571,2558.3,2558.2,0.45726493]
[1747580075171,3.90877269,2558.4,2558.2,0.82218013]
[1747580075479,3.90884571,2558.3,2558.2,0.82218013]
[1747580076178,13.60060035,2558.3,2558.2,0.82218013]
[1747580076555,23.25060035,2558.3,2558.2,0.3649152]
[1747580076879,14.15060035,2558.3,2558.2,0.3649152]
[1747580077177,23.25060035,2558.3,2558.2,0.3649152]
[1747580077481,14.15060035,2558.3,2558.2,0.3649152]
[1747580077649,16.5780246,2557.9,2557.8,0.45726493]